bitfinex/quotes_SOLUSD_20260217
["timestamp","ask_amount","ask_price","bid_price","bid_amount"]
[1771353360862,0.43708682,84.885,84.855,11.7847045]
[1771353361164,0.43708682,84.885,84.856,0.4756016]
[1771353361343,30.33787,84.884,84.857,11.78453162]
[1771353361665,7.58387981,84.89,84.858,0.4756016]
[1771353361845,47.08208038,84.959,84.871,0.4756016]
[1771353361846,17.96,84.889,84.871,0.4756016]
[1771353362045,17.73278372,84.888,84.871,0.4756016]
[1771353363044,0.5057403,84.903,84.871,0.4756016]
[1771353363245,18.04,84.902,84.871,0.4756016]
[1771353363657,7.14695497,84.91,84.881,0.4756016]
[1771353363862,0.5057403,84.969,84.901,0.4756016]
[1771353364073,7.14695497,84.97,84.93,7.14695497]
[1771353364074,0.5057403,84.967,84.93,7.14695497]
[1771353364251,7.14695497,84.94,84.9,7.14695497]
[1771353364452,0.5057403,84.949,84.92,7.14695497]
[1771353364766,18.4057403,84.948,84.92,7.62255657]
[1771353364954,18.4057403,84.948,84.921,0.4756016]
[1771353365264,7.14695497,84.96,84.921,0.4756016]
[1771353365444,0.5057403,84.959,84.931,0.4756016]
[1771353365649,0.5057403,84.96,84.931,0.4756016]
[1771353365848,0.5057403,84.959,84.931,0.4756016]
[1771353366667,0.5057403,84.959,84.927,11.77473749]
[1771353367365,0.5057403,84.949,84.913,0.4756016]
[1771353367674,0.5057403,84.947,84.92,7.14695497]
[1771353367970,0.5057403,84.947,84.921,11.77565031]
[1771353368769,17.58,84.948,84.922,0.4756016]
[1771353369370,17.76,84.948,84.931,0.4756016]
[1771353369590,7.14229756,84.97,84.931,0.4756016]
[1771353369766,17.72,84.969,84.931,11.77426381]
[1771353369966,0.5057403,84.968,84.941,0.4756016]
[1771353370278,7.64803786,84.95,84.91,7.14229756]
[1771353370446,0.5057403,84.949,84.911,0.4756016]
[1771353371047,17.04,84.954,84.921,0.4756016]
[1771353371254,0.5057403,84.966,84.931,0.4756016]
[1771353371559,0.5057403,84.965,84.931,0.4756016]
[1771353371759,7.14229756,84.97,84.931,0.4756016]
[1771353371760,17.9057403,84.964,84.931,0.4756016]
[1771353372666,17.2,84.969,84.941,0.4756016]
[1771353372965,0.5057403,84.968,84.941,0.4756016]
[1771353373667,0.5057403,84.977,84.941,0.4756016]
[1771353373967,0.5057403,84.975,84.941,0.4756016]
[1771353374579,17.22,84.976,84.951,0.48230631]
[1771353374774,17.14,84.978,84.953,0.48230631]
[1771353374975,0.4954431,84.977,84.953,0.48230631]
[1771353376177,17.38,84.976,84.953,0.48230631]
[1771353376363,17.38,84.976,84.954,11.77107611]
[1771353376563,17.42,84.976,84.954,11.77107611]
[1771353376867,0.4954431,84.977,84.954,11.77107611]
[1771353377074,17.46,84.976,84.954,11.77107611]
[1771353377266,7.14229756,84.98,84.955,0.48230631]
[1771353377472,17.56,84.979,84.955,0.48230631]
[1771353378169,17.56,84.979,84.956,12.25310531]
[1771353378372,7.63774066,84.99,84.961,0.48230631]
[1771353378577,0.4954431,84.99,84.961,0.48230631]
[1771353378758,0.2,85.0,84.971,0.48230631]
[1771353378964,0.2,85.0,84.981,0.48230631]
[1771353379856,0.2,85.01,84.99,7.14229756]
[1771353380087,0.1,85.02,85.001,0.48230631]
[1771353380259,0.1,85.02,85.01,7.14229756]
[1771353380590,17.68,85.033,85.011,0.48230631]
[1771353380957,17.68,85.033,85.01,7.14229756]
[1771353381151,0.4954431,85.032,85.01,7.14229756]
[1771353382360,0.4954431,85.032,85.009,11.76332594]
[1771353383582,0.4954431,85.032,85.01,7.14229756]
[1771353383780,17.48,85.037,85.011,0.48230631]
[1771353384166,0.4954431,85.041,85.011,0.48230631]
[1771353384365,0.4954431,85.049,85.021,0.48230631]
[1771353384565,0.4954431,85.043,85.012,0.48230631]
[1771353385478,17.68,85.042,85.021,11.76180002]
[1771353386388,17.68,85.042,85.016,12.24472281]
[1771353387875,17.68,85.042,85.017,0.48230631]
[1771353388078,17.68,85.042,85.021,0.48230631]
[1771353388667,11.7559161,85.064,85.031,0.48230631]
[1771353388877,11.7559161,85.064,85.04,7.14229756]
[1771353388878,17.86,85.061,85.04,7.14229756]
[1771353389168,11.7559161,85.064,85.04,7.14229756]
[1771353389364,17.9,85.063,85.031,0.48230631]
[1771353389790,11.75613082,85.062,85.033,0.48230631]
[1771353390173,18.3954431,85.063,85.033,0.48230631]
[1771353390379,0.4954431,85.062,85.033,0.48230631]
[1771353390783,7.63774066,85.07,85.04,7.14229756]
[1771353390982,12.25053739,85.07,85.041,0.48230631]
[1771353391191,18.08,85.069,85.041,0.48230631]
[1771353391983,0.4954431,85.07,85.043,0.48230631]
[1771353392195,0.4954431,85.081,85.043,0.48230631]
[1771353392392,0.4954431,85.081,85.042,11.7588956]
[1771353392393,0.4954431,85.1,85.071,0.48230631]
[1771353392573,0.4954431,85.1,85.042,41.15613461]
[1771353392574,0.4954431,85.098,85.063,0.48230631]
[1771353393276,0.4954431,85.104,85.071,0.48230631]
[1771353393589,0.4954431,85.102,85.071,0.48230631]
[1771353394090,0.4954431,85.102,85.05,7.14229756]
[1771353394091,0.4954431,85.109,85.08,2.39132148]
[1771353394293,0.4954431,85.109,85.081,0.48230631]
[1771353394294,18.08,85.108,85.081,0.48230631]
[1771353395477,0.4954431,85.107,85.072,0.48230631]
[1771353395893,18.1,85.106,85.072,0.48230631]
[1771353396084,0.4954431,85.105,85.073,11.75461074]
[1771353396291,0.4954431,85.105,85.074,0.48230631]
[1771353396492,18.1,85.106,85.081,0.48230631]
[1771353397000,18.12,85.108,85.081,0.48230631]
[1771353397791,18.6954431,85.11,85.081,0.48230631]
[1771353397993,0.4954431,85.11,85.081,0.48230631]
[1771353398300,18.7154431,85.11,85.081,0.48230631]
[1771353403605,0.4954431,85.099,85.06,7.11641724]
[1771353403804,0.4954431,85.099,85.06,7.59872355]
[1771353404013,0.4954431,85.099,85.061,0.48230631]
[1771353404589,0.4954431,85.099,85.071,0.54164531]
[1771353405913,0.54311593,85.116,85.081,0.54164531]
[1771353406119,0.54311593,85.114,85.081,0.54164531]
[1771353406491,0.54311593,85.114,85.09,7.11641724]
[1771353406903,0.54311593,85.114,85.088,0.54164531]
[1771353407593,11.74861788,85.117,85.088,0.54164531]
[1771353407802,11.74861788,85.117,85.09,0.54164531]
[1771353407998,17.8,85.119,85.091,0.54164531]
[1771353408207,0.1,85.12,85.11,7.11641724]
[1771353408630,0.1,85.12,85.101,0.54164531]
[1771353409747,0.54311593,85.164,85.111,0.54164531]
[1771353409928,0.54311593,85.164,85.1,7.11641724]
[1771353409929,0.54311593,85.162,85.13,7.11641724]
[1771353410131,0.54311593,85.159,85.131,0.54164531]
[1771353410938,17.58,85.164,85.14,7.11641724]
[1771353411257,0.54311593,85.159,85.13,7.11641724]
[1771353411451,0.54311593,85.159,85.131,0.54164531]
[1771353411955,0.54311593,85.159,85.132,11.74646431]
[1771353415136,29.34180668,85.166,85.097,0.51997668]
[1771353415137,0.54761045,85.149,85.097,0.51997668]
[1771353415440,0.54761045,85.139,85.102,0.51997668]
[1771353415643,0.54761045,85.139,85.11,7.11641724]
[1771353415954,0.54761045,85.139,85.11,2.9091382]
[1771353416338,0.54761045,85.137,85.11,2.38916152]
[1771353416640,0.54761045,85.137,85.11,2.9091382]
[1771353416841,0.54761045,85.137,85.11,2.38916152]
[1771353417838,0.54761045,85.137,85.11,7.11064555]
[1771353418247,11.74591242,85.136,85.11,7.11064555]
[1771353418441,0.54761045,85.135,85.11,7.11064555]
[1771353418762,0.54761045,85.135,85.112,0.51997668]
[1771353419261,7.11064555,85.15,85.111,11.74936259]
[1771353419262,0.54761045,85.146,85.121,0.51997668]
[1771353420460,11.74467085,85.145,85.121,0.51997668]
[1771353420655,0.54761045,85.144,85.121,0.51997668]
[1771353420952,0.54761045,85.144,85.115,11.74869494]
[1771353421356,0.54761045,85.139,85.091,0.51997668]
[1771353421559,18.48761045,85.149,85.114,0.51997668]
[1771353421759,0.54761045,85.148,85.114,0.51997668]
[1771353421939,0.54761045,85.148,85.11,7.63062223]
[1771353422138,0.54761045,85.139,85.11,0.51997668]
[1771353422340,7.11064555,85.13,85.11,0.51997668]
[1771353422557,0.54761045,85.137,85.112,0.51997668]
[1771353422739,0.54761045,85.147,85.112,0.51997668]
[1771353422946,46.93859845,85.218,85.14,7.11064555]
[1771353422947,17.88,85.158,85.14,7.11064555]
[1771353423169,0.54761045,85.198,85.151,0.51997668]
[1771353423455,7.11064555,85.25,85.175,0.51997668]
[1771353423456,0.1,85.2,85.175,0.51997668]
[1771353423656,0.1,85.2,85.18,7.11064555]
[1771353423862,0.64761045,85.2,85.18,7.11064555]
[1771353424065,0.1,85.2,85.18,7.11064555]
[1771353424766,0.1,85.2,85.182,0.51997668]
[1771353424946,0.54761045,85.229,85.191,0.51997668]
[1771353425261,0.54761045,85.229,85.154,5.36086188]
[1771353425262,0.54761045,85.219,85.184,0.51997668]
[1771353425652,0.54761045,85.219,85.19,7.11064555]
[1771353425852,0.54761045,85.219,85.184,0.51997668]
[1771353426047,41.06583439,85.229,84.972,44.50328475]
[1771353426048,0.54761045,85.209,85.17,7.11064555]
[1771353426347,0.54761045,85.199,85.17,7.11064555]
[1771353426741,12.28497517,85.198,85.17,7.11064555]
[1771353426945,0.54761045,85.197,85.17,7.11064555]
[1771353427143,0.54761045,85.196,85.17,7.11064555]
[1771353427344,11.73667249,85.204,85.18,7.63062223]
[1771353427546,17.54,85.203,85.181,0.51997668]
[1771353427760,7.11064555,85.21,85.181,0.51997668]
[1771353427761,0.54761045,85.208,85.181,0.51997668]
[1771353429052,0.54761045,85.206,85.181,0.51997668]
[1771353430054,11.73537803,85.213,85.183,0.51997668]
[1771353430267,0.54761045,85.226,85.191,0.51997668]
[1771353430464,17.76,85.221,85.191,0.51997668]
[1771353431481,0.54761045,85.209,85.17,7.09851542]
[1771353431767,0.54761045,85.209,85.17,7.6184921]
[1771353431973,0.54761045,85.207,85.17,7.09851542]
[1771353432171,0.54761045,85.199,85.171,0.51997668]
[1771353432468,7.09851542,85.18,85.152,0.51997668]
[1771353432667,0.54761045,85.181,85.152,0.51997668]
[1771353432883,0.54761045,85.184,85.151,12.26381997]
[1771353433078,7.09851542,85.18,85.152,0.51997668]
[1771353433645,7.09851542,85.18,85.134,29.36517343]
[1771353433646,0.54761045,85.178,85.143,0.51997668]
[1771353433847,7.09851542,85.17,85.143,0.51997668]
[1771353434085,0.54761045,85.169,85.143,0.51997668]
[1771353434254,17.56,85.168,85.143,0.51997668]
[1771353434449,0.56071567,85.167,85.13,7.09851542]
[1771353434664,0.56071567,85.167,85.13,7.63920212]
[1771353434865,0.56071567,85.167,85.132,0.5406867]
[1771353435178,0.56071567,85.167,85.141,0.5406867]
[1771353435352,0.56071567,85.167,85.131,11.74660229]
[1771353435353,0.56071567,85.165,85.132,0.5406867]
[1771353435552,0.56071567,85.159,85.12,7.63920212]
[1771353435772,0.56071567,85.157,85.122,11.7478136]
[1771353435971,0.56071567,85.157,85.123,0.5406867]
[1771353437675,0.56071567,85.149,85.111,0.5406867]
[1771353437855,0.56071567,85.147,85.111,12.29004819]
[1771353438061,0.56071567,85.147,85.112,0.5406867]
[1771353438379,11.74425705,85.148,85.12,7.09851542]
[1771353438562,17.68,85.146,85.121,0.5406867]
[1771353439676,12.30538652,85.145,85.121,0.5406867]
[1771353441579,12.30538652,85.145,85.112,0.5406867]
[1771353441580,0.56071567,85.139,85.112,0.5406867]
[1771353442457,11.74563649,85.138,85.112,0.5406867]
[1771353442883,0.56071567,85.137,85.112,0.5406867]
[1771353443071,0.56071567,85.137,85.098,11.7510448]
[1771353443272,0.56071567,85.119,85.088,0.5406867]
[1771353443461,0.56071567,85.117,85.088,0.5406867]
[1771353443976,0.56071567,85.117,85.09,7.29851542]
[1771353444286,0.56071567,85.109,85.09,0.2]
[1771353444490,0.56071567,85.107,85.09,0.2]
[1771353444993,7.09851542,85.1,85.09,0.2]
[1771353445190,0.56071567,85.107,85.09,0.2]
[1771353446586,12.31076854,85.106,85.09,0.2]
[1771353446877,11.75005287,85.106,85.09,0.2]
[1771353447185,0.56071567,85.105,85.09,0.2]
[1771353449482,0.56071567,85.099,85.067,0.5406867]
[1771353449663,18.5,85.098,85.067,0.5406867]
[1771353449864,18.5,85.098,85.071,0.5406867]
[1771353450065,0.56071567,85.125,85.081,0.5406867]
[1771353450367,7.09851542,85.12,85.091,0.5406867]
[1771353451186,18.46,85.124,85.101,0.5406867]
[1771353451361,18.42,85.126,85.111,0.5406867]
[1771353452269,0.56071567,85.136,85.112,11.74922455]
[1771353452578,18.38,85.131,85.112,12.28991125]
[1771353452781,18.38,85.131,85.112,0.5406867]
[1771353452984,11.74605039,85.135,85.112,0.5406867]
[1771353453179,18.42,85.134,85.112,12.28991125]
[1771353453578,18.42,85.134,85.112,0.5406867]
[1771353454288,11.74632633,85.133,85.107,11.74977761]
[1771353454791,0.56071567,85.129,85.096,0.5406867]
[1771353454992,0.56071567,85.127,85.098,0.5406867]
[1771353455175,0.56071567,85.127,85.101,0.5406867]
[1771353455573,18.48,85.126,85.101,0.5406867]
[1771353455990,0.56071567,85.125,85.101,0.5406867]
[1771353456168,7.09851542,85.12,85.093,12.29245768]
[1771353456367,11.74825832,85.119,85.094,0.5406867]
[1771353457793,7.09851542,85.13,85.094,0.5406867]
[1771353457992,7.09851542,85.13,85.093,11.75177098]
[1771353457993,18.56,85.129,85.101,0.5406867]
[1771353458293,18.56,85.129,85.111,0.5406867]
[1771353458499,7.09851542,85.14,85.113,0.5406867]
[1771353458688,18.52,85.131,85.113,0.5406867]
[1771353460086,7.09851542,85.15,85.121,0.5406867]
[1771353460285,0.56071567,85.148,85.114,0.5406867]
[1771353460481,0.56071567,85.146,85.114,0.5406867]
[1771353461090,0.56071567,85.139,85.106,12.29073143]
[1771353461498,7.65923109,85.13,85.102,0.5406867]
[1771353462497,41.10538244,85.147,85.11,7.09851542]
[1771353462498,7.65923109,85.14,85.11,7.09851542]
[1771353462681,0.56071567,85.129,85.095,0.5406867]
[1771353462880,7.09851542,85.12,85.095,0.5406867]
[1771353463382,18.62,85.119,85.096,0.5406867]
[1771353463581,0.56071567,85.118,85.089,0.5406867]
[1771353463781,7.09851542,85.11,85.081,0.5406867]
[1771353463994,7.65923109,85.11,85.081,0.5406867]
[1771353464592,0.54165692,85.108,85.073,0.50129909]
[1771353464795,0.54165692,85.108,85.081,0.50129909]
[1771353465003,30.30963869,85.109,85.081,0.50129909]
[1771353466205,18.56,85.109,85.083,0.50129909]
[1771353466704,18.64,85.109,85.083,0.50129909]
[1771353467489,0.54165692,85.108,85.071,0.50129909]
[1771353468091,0.54165692,85.099,85.071,0.50129909]
[1771353468506,12.29280385,85.099,85.072,11.75474891]
[1771353468807,0.54165692,85.107,85.081,0.50129909]
[1771353471805,0.54165692,85.107,85.083,0.50129909]
[1771353472114,0.54165692,85.105,85.076,0.50129909]
[1771353473608,0.54165692,85.105,85.081,0.4998785]
[1771353473818,0.54165692,85.105,85.081,11.75338717]
[1771353474011,0.54165692,85.105,85.082,0.4998785]
[1771353474311,12.29189775,85.105,85.082,0.4998785]
[1771353474492,0.51260781,85.104,85.082,0.4998785]
[1771353474693,19.06,85.103,85.082,0.4998785]
[1771353475291,11.75060515,85.102,85.082,0.4998785]
[1771353475891,19.57260781,85.103,85.082,0.4998785]
[1771353476200,19.06,85.103,85.084,0.4998785]
[1771353476708,0.51260781,85.104,85.079,11.75376772]
[1771353476909,19.16,85.102,85.079,11.75376772]
[1771353477594,19.16,85.101,85.077,0.4998785]
[1771353477804,0.51260781,85.1,85.077,0.4998785]
[1771353479306,0.51260781,85.1,85.07,7.09851542]
[1771353479307,19.22,85.106,85.081,0.4998785]
[1771353480404,19.22,85.106,85.081,11.75342253]
[1771353480611,19.22,85.106,85.082,0.4998785]
[1771353481814,0.51260781,85.129,85.091,0.4998785]
[1771353482003,0.51260781,85.127,85.091,0.4998785]
[1771353482318,0.51260781,85.119,85.091,0.4998785]
[1771353482510,0.51260781,85.119,85.084,0.4998785]
[1771353482708,0.51260781,85.109,85.071,0.4998785]
[1771353483106,0.51260781,85.099,85.071,0.4998785]
[1771353483306,2.39002993,85.1,85.071,0.4998785]
[1771353483307,0.51260781,85.097,85.071,0.4998785]
[1771353484014,2.90263774,85.08,85.056,12.25679356]
[1771353484213,19.16,85.079,85.056,12.25679356]
[1771353484602,0.51260781,85.078,85.056,12.25679356]
[1771353484813,0.51260781,85.078,85.057,0.4998785]
[1771353485204,0.51260781,85.078,85.05,12.2575385]
[1771353485409,0.51260781,85.078,85.035,29.39948031]
[1771353485410,0.51260781,85.069,85.042,0.4998785]
[1771353485615,19.16,85.072,85.042,0.4998785]
[1771353486017,19.12,85.073,85.044,0.4998785]
[1771353486214,11.75433441,85.075,85.044,0.4998785]
[1771353486418,19.63260781,85.074,85.044,0.4998785]
[1771353486718,0.51260781,85.069,85.038,11.75941114]
[1771353487519,0.51260781,85.069,85.038,12.25928964]
[1771353488022,19.63260781,85.074,85.041,0.4998785]
[1771353488319,0.51260781,85.072,85.041,0.4998785]
[1771353488523,2.90263774,85.07,85.041,0.4998785]
[1771353489506,29.37925038,85.095,85.061,0.4998785]
[1771353489707,0.51260781,85.089,85.061,0.4998785]
[1771353490206,19.16,85.088,85.061,0.4998785]
[1771353490401,0.51260781,85.087,85.061,0.4998785]
[1771353490620,0.51260781,85.093,85.061,0.4998785]
[1771353490826,0.51260781,85.091,85.061,0.4998785]
[1771353491129,0.51260781,85.089,85.061,0.4998785]
[1771353491624,0.51260781,85.079,85.042,0.4998785]
[1771353491824,0.51260781,85.077,85.042,0.4998785]
[1771353492428,0.51260781,85.069,85.037,11.75953054]
[1771353493225,0.51260781,85.069,85.038,0.4998785]
[1771353493523,0.51260781,85.065,85.038,0.4998785]
[1771353493911,0.51260781,85.059,85.031,11.76039262]
[1771353494113,0.51260781,85.057,85.03,0.4998785]
[1771353494311,7.63708199,85.05,85.022,0.4998785]
[1771353494721,7.63708199,85.05,85.0,0.2]
[1771353494722,0.52435825,85.029,85.002,0.48446295]
[1771353494921,0.52435825,85.029,85.003,11.76429067]
[1771353495829,0.52435825,85.029,85.004,0.48446295]
[1771353496130,19.0,85.039,85.011,0.48446295]
[1771353496317,0.52435825,85.041,85.003,41.17501735]
[1771353496318,0.52435825,85.053,85.021,0.48446295]
[1771353496516,0.52435825,85.053,85.028,0.48446295]
[1771353496908,7.64883243,85.06,85.03,7.12447418]
[1771353497110,18.96,85.065,85.031,0.48446295]
[1771353497310,0.52435825,85.078,85.041,0.48446295]
[1771353497628,0.52435825,85.069,85.041,0.48446295]
[1771353499315,0.52435825,85.049,85.022,0.48446295]
[1771353499826,7.12447418,85.05,85.022,0.48446295]
[1771353500034,18.78,85.061,85.041,0.48446295]
[1771353500407,0.52435825,85.078,85.051,0.48446295]
[1771353500611,0.52435825,85.076,85.051,0.48446295]
[1771353500820,0.52435825,85.076,85.04,7.12447418]
[1771353501126,7.12447418,85.07,85.041,0.48446295]
[1771353501430,11.75497354,85.071,85.043,0.48446295]
[1771353501724,7.64883243,85.07,85.043,0.48446295]
[1771353501913,7.12447418,85.07,85.043,0.48446295]
[1771353502113,0.52435825,85.069,85.043,0.48446295]
[1771353502626,11.75487265,85.072,85.043,0.48446295]
[1771353503627,7.12447418,85.08,85.045,0.48446295]
[1771353503930,0.52435825,85.089,85.051,0.48446295]
[1771353504115,19.36435825,85.088,85.051,0.48446295]
[1771353504630,0.52435825,85.087,85.051,0.48446295]
[1771353505727,0.52435825,85.079,85.045,0.48446295]
[1771353505907,0.52435825,85.078,85.045,0.48446295]
[1771353506113,0.52435825,85.059,85.02,7.60893713]
[1771353506313,0.52435825,85.049,85.02,7.60893713]
[1771353506615,0.52435825,85.049,85.021,0.48446295]
[1771353507515,0.52435825,85.049,85.022,11.76166168]
[1771353509333,0.52435825,85.049,85.022,11.65666168]
[1771353510826,0.52435825,85.047,85.017,11.76230271]
[1771353511932,0.52435825,85.045,85.017,11.76230271]
[1771353513416,0.52435825,85.045,85.011,11.76318358]
[1771353513616,0.52435825,85.045,85.012,0.48446295]
[1771353514132,0.52435825,85.039,85.011,11.76318358]
[1771353514519,18.9,85.038,85.011,11.76318358]
[1771353514716,0.52435825,85.037,85.011,11.76318358]
[1771353514912,12.28297731,85.044,85.012,0.48446295]
[1771353515227,0.52435825,85.042,85.012,0.48446295]
[1771353515432,7.12447418,85.04,85.019,0.48446295]
[1771353515828,7.12447418,85.04,85.02,11.76193836]
[1771353516020,7.12447418,85.04,85.021,0.48446295]
[1771353517536,7.64883243,85.05,85.022,11.76166168]
[1771353517729,0.52435825,85.049,85.023,0.48446295]
[1771353518239,2.39432982,85.04,85.023,0.48446295]
[1771353518620,0.52435825,85.048,85.023,0.48446295]
[1771353519736,11.75820428,85.047,85.024,11.76138502]
[1771353519943,11.75820428,85.047,85.024,12.24584797]
[1771353520128,0.52435825,85.048,85.025,0.48446295]
[1771353521342,0.52435825,85.048,85.026,11.76110836]
[1771353521534,0.52435825,85.059,85.027,0.48446295]
[1771353521739,2.39432982,85.07,85.031,0.48446295]
[1771353522631,2.39432982,85.08,85.041,0.48446295]
[1771353522836,2.39432982,85.09,85.051,0.48446295]
[1771353523143,33.00659213,85.09,85.051,0.48446295]
[1771353523348,21.77868807,85.09,85.051,0.48446295]
[1771353523644,21.25432982,85.09,85.053,0.48446295]
[1771353523946,0.52435825,85.089,85.053,0.48446295]
[1771353524644,7.11938255,85.08,85.053,0.48446295]
[1771353525133,0.52435825,85.089,85.053,0.48446295]
[1771353525454,19.30435825,85.089,85.053,0.48446295]
[1771353525636,7.11938255,85.08,85.055,0.49162061]
[1771353527843,7.11938255,85.08,85.057,0.49162061]
[1771353528548,0.49736514,85.079,85.057,0.49162061]
[1771353529742,0.49736514,85.079,85.05,0.49162061]
[1771353530855,18.76,85.087,85.041,41.15661856]
[1771353530856,0.49736514,85.069,85.041,11.75903387]
[1771353531157,0.49736514,85.059,85.041,11.75903387]
[1771353532462,25.91938255,85.07,85.031,0.47776122]
[1771353532661,0.51302594,85.069,85.031,0.47776122]
[1771353532834,7.11938255,85.06,85.031,0.47776122]
[1771353533234,7.11938255,85.05,85.031,0.47776122]
[1771353533555,7.11938255,85.04,85.021,11.76180002]
[1771353533755,7.11938255,85.03,85.02,0.47776122]
[1771353533953,7.11938255,85.03,85.013,0.47776122]
[1771353534756,7.11938255,85.03,85.002,0.47776122]
[1771353535938,0.51302594,85.038,85.002,0.47776122]
[1771353536262,7.11938255,85.04,85.002,0.47776122]
[1771353536752,7.11938255,85.04,85.004,0.47776122]
[1771353537152,7.11938255,85.03,85.004,0.47776122]
[1771353537737,0.51302594,85.029,85.004,0.47776122]
[1771353538439,7.11938255,85.02,85.005,11.76401388]
[1771353538644,0.51302594,85.029,85.006,0.47776122]
[1771353539640,7.11938255,85.02,85.006,0.47776122]
[1771353540035,7.11938255,85.02,85.0,0.2]
[1771353540036,0.51302594,85.019,85.0,0.2]
[1771353540250,7.63240849,85.01,84.99,0.2]
[1771353540558,7.11938255,85.0,84.99,0.2]
[1771353541259,7.11938255,85.01,84.991,0.47776122]
[1771353541456,7.11938255,85.01,84.992,0.47776122]
[1771353541657,7.11938255,85.02,84.992,0.47776122]
[1771353541962,7.11938255,85.03,84.992,0.47776122]
[1771353542342,7.11938255,85.04,85.001,0.47776122]
[1771353543252,7.63240849,85.02,84.993,12.24343604]
[1771353543562,7.11938255,85.01,84.993,11.76567482]
[1771353543941,7.11938255,85.01,84.99,0.2]
[1771353544141,0.51302594,85.049,84.992,0.47776122]
[1771353544341,7.11938255,85.03,84.994,0.47776122]
[1771353544543,7.11938255,85.01,84.99,0.2]
[1771353544745,7.11938255,85.05,84.99,0.2]
[1771353544746,7.11938255,85.0,84.99,0.2]
[1771353545660,7.11938255,85.0,84.98,0.2]
[1771353545661,7.51746451,85.0,84.98,0.2]
[1771353545864,2.39720266,84.99,84.98,0.2]
[1771353546160,2.39720266,85.02,84.98,0.2]
[1771353546161,2.39720266,85.0,84.982,0.47776122]
[1771353546459,2.39720266,85.0,84.984,0.47776122]
[1771353546647,2.39720266,85.01,84.984,0.47776122]
[1771353548367,0.39672766,85.009,84.983,0.47776122]
[1771353548662,2.39720266,85.0,84.983,0.47776122]
[1771353548873,2.39720266,84.99,84.969,11.76892051]
[1771353549446,2.39720266,84.99,84.97,0.47776122]
[1771353549947,0.39628656,85.01,84.972,0.47776122]
[1771353550153,2.39720266,85.0,84.972,0.47776122]
[1771353550670,2.39720266,85.01,84.972,0.47776122]
[1771353552058,2.39661254,85.01,84.972,0.47776122]
[1771353552250,2.39661254,85.01,84.974,0.47776122]
[1771353554156,2.39661254,85.01,84.976,0.47776122]
[1771353554562,2.39661254,85.02,84.981,0.50130308]
[1771353555459,2.39661254,85.03,84.991,0.50130308]
[1771353557552,2.39661254,85.03,84.993,0.50130308]
[1771353557753,2.39661254,85.03,85.001,0.50130308]
[1771353559769,2.39661254,85.03,85.003,0.50130308]
[1771353561863,2.39661254,85.03,85.005,0.50130308]
[1771353563496,2.39661254,85.03,85.006,11.76387549]
[1771353563778,2.39661254,85.03,85.007,0.50130308]
[1771353565060,2.39661254,85.02,85.006,11.76387549]
[1771353565271,0.38987994,85.029,85.006,11.76387549]
[1771353565459,0.38987994,85.029,85.006,12.26517857]
[1771353565661,2.39661254,85.03,85.007,0.50130308]
[1771353567969,0.3895175,85.037,85.009,0.50130308]
[1771353568175,2.39661254,85.03,85.009,0.50130308]
[1771353571072,0.38776675,85.029,85.008,11.76359872]
[1771353571385,0.38776675,85.029,85.008,12.2649018]
[1771353573583,0.38776675,85.029,85.002,0.50130308]
[1771353573788,2.39661254,85.02,85.002,0.50130308]
[1771353574484,2.39661254,85.02,84.927,12.54019853]
[1771353574485,0.38643717,85.009,84.991,11.76588197]
[1771353575569,0.38611426,85.015,84.992,0.50130308]
[1771353575874,17.98,85.018,84.992,0.50130308]
[1771353576482,2.39661254,85.01,84.992,0.50130308]
[1771353578504,2.39661254,85.02,84.994,0.50130308]
[1771353580888,2.39661254,85.02,84.996,0.50130308]
[1771353581985,2.39661254,85.03,84.996,0.50130308]
[1771353583293,14.15717301,85.03,84.998,0.50130308]
[1771353583680,14.54083403,85.03,84.998,0.50130308]
[1771353583880,0.38366102,85.029,84.998,0.50130308]
[1771353586782,0.38366102,85.029,85.0,0.48545678]
[1771353588681,0.38196429,85.039,85.002,0.48545678]
[1771353589496,0.38196429,85.019,84.992,0.48545678]
[1771353589803,2.39661254,85.01,84.992,0.48545678]
[1771353591180,2.39661254,85.01,84.993,11.76567482]
[1771353591380,34.01699443,85.035,84.994,0.48545678]
[1771353591381,2.39661254,85.02,84.994,0.48545678]
[1771353591581,2.39661254,85.03,84.994,0.48545678]
[1771353591789,0.38115902,85.032,85.001,0.48545678]
[1771353591994,0.38115902,85.029,85.001,0.48545678]
[1771353593512,0.38063747,85.028,85.002,11.76442907]
[1771353593703,0.38063747,85.028,85.003,0.46865327]
[1771353594094,17.9,85.04,85.003,0.46865327]
[1771353594095,2.39661254,85.04,85.003,0.46865327]
[1771353594290,2.77699372,85.04,85.003,0.46865327]
[1771353594486,0.38012783,85.039,85.003,0.46865327]
[1771353595207,2.39661254,85.03,85.003,0.46865327]
[1771353595901,0.38012783,85.039,85.005,0.46865327]
[1771353596306,0.3798774,85.056,85.011,0.46865327]
[1771353596505,0.37962984,85.039,85.011,0.46865327]